[Event "FIN-ch Women 2018"]
[Site "Helsinki"]
[Date "2018.06.18"]
[Round "8"]
[White "Al-Hamoud, Lyal"]
[Black "Ristoja, Aulikki"]
[Result "1/2-1/2"]
[ECO "B01"]
[WhiteElo "1382"]
[BlackElo "1565"]
[Annotator "NA"]
[PlyCount "173"]
[EventDate "2018.06.13"]
[EventType "tourn"]
[EventCountry "FIN"]
[SourceTitle "playchess.com"]
[Source "ChessBase"]
[SourceQuality "1"]
[TimeControl "40/5400+30:1800+30"]

1. e4 {[%emt 0:00:00]} d5 {[%emt 0:00:08]} 2. f3 {[%emt 0:01:31]} dxe4 {[%emt 0:00:27]} 3. fxe4 {[%emt 0:00:30]} e5 {[%emt 0:02:07]} 4. Nf3 {[%emt 0:01:21]} Bg4 {[%emt 0:01:33]} 5. h3 {[%emt 0:00:51]} Bxf3 {[%emt 0:04:29]} 6. Qxf3 {[%emt 0:00:14]} Nf6 {[%emt 0:02:35]} 7. a3 {[%emt 0:04:57]} Nc6 {[%emt 0:02:24]} 8. Nc3 {[%emt 0:04:47]} Nd4 {[%emt 0:01:26]} 9. Qd1 {[%emt 0:03:45]} Bc5 {[%emt 0:03:02]} 10. d3 {[%emt 0:03:44]} a6 {[%emt 0:04:46]} 11. Be3 {[%emt 0:02:17]} Nxc2+ {[%emt 0:02:15]} 12. Qxc2 {[%emt 0:01:09]} Bxe3 {[%emt 0:00:09]} 13. g4 {[%emt 0:09:00]} c6 {[%emt 0:01:49]} 14. Bg2 {[%emt 0:01:45]} Qe7 {[%emt 0:05:12]} 15. Qe2 {[%emt 0:04:13]} Bd4 {[%emt 0:00:30]} 16. Qd2 {[%emt 0:00:56]} O-O-O {[%emt 0:00:32]} 17. O-O-O {[%emt 0:00:45]} Qc5 {[%emt 0:02:04]} 18. Kb1 {[%emt 0:02:06]} Be3 {[%emt 0:01:15]} 19. Qc2 {[%emt 0:02:12]} Bd4 {[%emt 0:00:53]} 20. Ne2 {[%emt 0:09:24]} Qa7 {[%emt 0:00:28]} 21. Qb3 {[%emt 0:05:48]} Rhf8 {[%emt 0:00:41]} 22. Ng3 {[%emt 0:06:02]} Rd7 {[%emt 0:01:30]} 23. Nf5 {[%emt 0:04:20]} g6 {[%emt 0:00:19]} 24. Nh6 {[%emt 0:01:28]} Be3 {[%emt 0:00:39]} 25. Rhf1 {[%emt 0:04:06]} Bxh6 {[%emt 0:00:05]} 26. Rxf6 {[%emt 0:00:50]} Bg7 {[%emt 0:00:19]} 27. Rf3 {[%emt 0:01:28]} Qd4 {[%emt 0:00:56]} 28. g5 {[%emt 0:01:01]} h6 {[%emt 0:00:44]} 29. h4 {[%emt 0:01:08]} Kc7 {[%emt 0:00:18]} 30. Bh3 {[%emt 0:02:02]} Re7 {[%emt 0:00:02]} 31. Rdf1 {[%emt 0:02:58]} hxg5 {[%emt 0:00:42]} 32. hxg5 {[%emt 0:00:31]} Qb6 {[%emt 0:00:53]} 33. Qxb6+ {[%emt 0:01:26]} Kxb6 {[%emt 0:00:02]} 34. Kc2 {[%emt 0:00:14]} c5 {[%emt 0:00:18]} 35. Kc3 {[%emt 0:00:38]} Kc6 {[%emt 0:00:15]} 36. b3 {[%emt 0:02:01]} Bh8 {[%emt 0:01:04]} 37. a4 {[%emt 0:01:29]} b5 {[%emt 0:00:35]} 38. a5 {[%emt 0:01:15]} Rc7 {[%emt 0:00:44]} 39. R3f2 {[%emt 0:01:42]} b4+ {[%emt 0:00:36]} 40. Kc2 {[%emt 0:00:00]} Kb5 {[%emt 0:00:18]} 41. Be6 {[%emt 0:03:23]} Kxa5 {[%emt 0:01:13]} 42. Bxf7 {[%emt 0:01:02]} Kb6 {[%emt 0:06:23]} 43. Bxg6 {[%emt 0:01:21]} Rg8 {[%emt 0:01:57]} 44. Bf7 {[%emt 0:01:26]} Rxg5 {[%emt 0:00:30]} 45. Bc4 {[%emt 0:00:30]} a5 {[%emt 0:01:50]} 46. Kb2 {[%emt 0:03:04]} Rg3 {[%emt 0:07:24]} 47. Kc2 {[%emt 0:01:29]} Bg7 {[%emt 0:02:09]} 48. Kb2 {[%emt 0:02:55]} Rg5 {[%emt 0:03:41]} 49. Kb1 {[%emt 0:02:11]} Rg3 {[%emt 0:00:30]} 50. Kc1 {[%emt 0:01:42]} Bh6+ {[%emt 0:00:22]} 51. Kd1 {[%emt 0:00:36]} Bf4 {[%emt 0:00:33]} 52. Ke2 {[%emt 0:02:49]} Rd7 {[%emt 0:01:04]} 53. Rf3 {[%emt 0:01:54]} Rdg7 {[%emt 0:01:11]} 54. R1f2 {[%emt 0:04:07]} Rg1 {[%emt 0:00:47]} 55. Rf1 {[%emt 0:00:48]} R7g2+ {[%emt 0:00:36]} 56. R3f2 Rxf1 57. Kxf1 {[%emt 0:01:58]} Rg3 {[%emt 0:02:04]} 58. Ke2 {[%emt 0:00:52]} Re3+ {[%emt 0:00:17]} 59. Kf1 {[%emt 0:00:53]} Rh3 {[%emt 0:00:10]} 60. Rg2 {[%emt 0:01:43]} Rf3+ {[%emt 0:00:51]} 61. Ke2 {[%emt 0:01:12]} Re3+ {[%emt 0:00:10]} 62. Kd1 Rg3 {[%emt 0:00:57]} 63. Rxg3 {[%emt 0:00:42]} Bxg3 {[%emt 0:00:02]} 64. Ke2 {[%emt 0:00:09]} Kc7 {[%emt 0:00:10]} 65. Kf3 {[%emt 0:00:08]} Bf4 {[%emt 0:00:07]} 66. Kg4 {[%emt 0:00:44]} Kd6 {[%emt 0:00:09]} 67. Kf5 {[%emt 0:00:18]} Ke7 {[%emt 0:00:09]} 68. Kg6 {[%emt 0:00:52]} Kf8 {[%emt 0:00:09]} 69. Kf6 {[%emt 0:00:03]} Ke8 {[%emt 0:00:28]} 70. Ke6 {[%emt 0:00:02]} Kd8 {[%emt 0:01:35]} 71. Kd6 {[%emt 0:00:39]} Kc8 {[%emt 0:01:40]} 72. Kxc5 {[%emt 0:00:16]} Be3+ {[%emt 0:00:41]} 73. Kb5 {[%emt 0:00:18]} a4 {[%emt 0:00:31]} 74. bxa4 {[%emt 0:00:08]} Bd2 {[%emt 0:00:27]} 75. a5 {[%emt 0:00:09]} Kb7 {[%emt 0:00:17]} 76. Kc5 {[%emt 0:00:43]} Bc3 {[%emt 0:00:29]} 77. a6+ {[%emt 0:01:43]} Ka7 {[%emt 0:00:02]} 78. Kb5 {[%emt 0:01:20]} Bd2 {[%emt 0:00:21]} 79. d4 {[%emt 0:01:45]} exd4 {[%emt 0:00:08]} 80. e5 {[%emt 0:00:13]} Bf4 {[%emt 0:00:57]} 81. e6 {[%emt 0:00:46]} Bd6 {[%emt 0:00:03]} 82. Kc6 {[%emt 0:01:35]} Bf8 {[%emt 0:00:28]} 83. Kd5 {[%emt 0:00:20]} b3 {[%emt 0:00:05]} 84. Kxd4 {[%emt 0:00:54]} b2 {[%emt 0:00:17]} 85. Bd3 {[%emt 0:00:51]} b1=Q {[%emt 0:00:07]} 86. Bxb1 {[%emt 0:00:14]} Kxa6 {[%emt 0:00:02]} 87. Ke4 1/2-1/2

[Event "FIN-ch Women 2018"]
[Site "Helsinki"]
[Date "2018.06.19"]
[Round "9"]
[White "Nazarova, Anastasia"]
[Black "Walta, Paivi"]
[Result "1/2-1/2"]
[ECO "B36"]
[WhiteElo "2137"]
[BlackElo "1634"]
[Annotator "NA"]
[PlyCount "107"]
[EventDate "2018.06.13"]
[EventType "tourn"]
[EventCountry "FIN"]
[SourceTitle "playchess.com"]
[Source "ChessBase"]
[SourceQuality "1"]
[TimeControl "40/5400+30:1800+30"]

1. e4 {[%emt 0:00:00]} c5 {[%emt 0:00:06]} 2. Nf3 {[%emt 0:00:00]} Nc6 {[%emt 0:00:05]} 3. d4 {[%emt 0:00:00]} cxd4 {[%emt 0:00:06]} 4. Nxd4 {[%emt 0:00:00]} g6 {[%emt 0:00:27]} 5. c4 {[%emt 0:00:00]} Nf6 {[%emt 0:00:48]} 6. Nc3 {[%emt 0:00:00]} d6 {[%emt 0:00:22]} 7. Be2 {[%emt 0:00:12]} Bg7 {[%emt 0:00:14]} 8. Be3 {[%emt 0:00:08]} O-O {[%emt 0:00:18]} 9. O-O {[%emt 0:00:05]} Bd7 {[%emt 0:00:27]} 10. Qd2 {[%emt 0:00:36]} Ng4 {[%emt 0:04:14]} 11. Bxg4 {[%emt 0:00:20]} Bxg4 {[%emt 0:00:06]} 12. f3 {[%emt 0:00:10]} Bd7 {[%emt 0:00:09]} 13. Rfd1 {[%emt 0:00:49]} b6 {[%emt 0:04:05] B38: Sicilian: Maroczy Bind with 5...Bg7 and 7...0-0} (13... a6 14. Nd5 Rc8 15. Rac1 Nxd4 16. Bxd4 Bxd4+ 17. Qxd4 Be6 18. Re1 Re8 19. Nf4 Bd7 20. e5 dxe5 21. Rxe5 {½-½ (35) Mareco,S (2625)-Pascua,H (2427) Dubai 2016}) 14. Rac1 {[%emt 0:00:27]} a5 $146 {[%emt 0:04:01]} ({Predecessor:} 14... Rc8 15. b3 Re8 16. Nd5 Nxd4 17. Bxd4 Bxd4+ 18. Qxd4 Bc6 19. Ne3 Qc7 20. b4 Red8 21. a3 {½-½ (56) Wieczorek,O (2353)-Tworzydlo,P (2153) Wroclaw 2013}) 15. Ndb5 {[%emt 0:02:03]} Rb8 {[%emt 0:03:29]} 16. Qf2 {[%emt 0:01:21]} Ne5 {[%emt 0:04:53]} 17. b3 {[%emt 0:01:50]} Bc6 {[%emt 0:02:12]} 18. Nd5 {[%emt 0:07:37]} Bxb5 {[%emt 0:07:41]} (18... Nd7 $16) 19. cxb5 {[%emt 0:02:41]} Nd7 {[%emt 0:00:09]} 20. Rc6 {[%emt 0:04:37]} Nc5 {[%emt 0:00:24]} 21. a4 {[%emt 0:10:29]} Rb7 {[%emt 0:02:52]} 22. Nxb6 {[%emt 0:04:14]} Rxb6 {[%emt 0:02:14]} 23. Bxc5 {[%emt 0:00:14]} Rxc6 {[%emt 0:00:27]} 24. bxc6 {[%emt 0:00:07]} Qc8 {[%emt 0:10:13]} 25. Bb6 {[%emt 0:02:17]} Qxc6 {[%emt 0:00:25]} 26. Bxa5 {[%emt 0:00:14]} Rb8 {[%emt 0:00:40]} 27. Rd3 {[%emt 0:19:49]} Qc1+ {[%emt 0:08:43]} 28. Be1 {[%emt 0:07:27]} Bh6 $14 {[%emt 0:04:43]} (28... Rc8 $11 29. Qe2 Qb1) 29. Qe2 {[%emt 0:06:43]} Rc8 {[%emt 0:06:16]} 30. Rd1 {[%emt 0:04:51]} Qa3 {[%emt 0:02:13]} 31. Qd3 {[%emt 0:02:08]} Qa2 {[%emt 0:07:31]} 32. Bd2 {[%emt 0:17:30]} Rc2 {[%emt 0:02:01]} 33. f4 {[%emt 0:00:03]} Rb2 {[%emt 0:03:39]} 34. b4 {[%emt 0:04:05]} Qxa4 {[%emt 0:02:17]} 35. Rc1 {[%emt 0:00:08]} Qa2 {[%emt 0:09:06]} 36. Qh3 {[%emt 0:03:21]} Rxd2 {[%emt 0:05:42]} 37. Qxh6 {[%emt 0:00:10]} Rc2 {[%emt 0:01:07]} 38. f5 {[%emt 0:01:13]} Qb2 {[%emt 0:02:01]} 39. Rxc2 {[%emt 0:00:52]} Qxc2 {[%emt 0:00:06]} 40. Qh4 {[%emt 0:00:00]} Qb2 {[%emt 0:01:42]} 41. h3 {[%emt 0:14:00]} Qxb4 {[%emt 0:01:02]} 42. Qxe7 {[%emt 0:00:09]} Qd4+ {[%emt 0:00:39]} 43. Kh1 {[%emt 0:00:14]} Qa1+ {[%emt 0:00:39]} 44. Kh2 {[%emt 0:00:23]} Qe5+ {[%emt 0:00:12]} 45. Qxe5 {[%emt 0:00:05]} dxe5 {[%emt 0:00:05]} 46. g4 {[%emt 0:01:49]} f6 {[%emt 0:00:39]} 47. Kg3 {[%emt 0:04:10]} Kf7 {[%emt 0:00:13]} 48. h4 {[%emt 0:01:52]} h6 {[%emt 0:03:04]} 49. fxg6+ {[%emt 0:02:19]} Kxg6 {[%emt 0:00:08]} 50. Kf3 {[%emt 0:00:34]} Kf7 {[%emt 0:00:13]} 51. Kf2 {[%emt 0:02:11]} Ke6 {[%emt 0:00:39]} 52. Ke3 {[%emt 0:00:36]} Kf7 {[%emt 0:00:47]} 53. Kf3 {[%emt 0:01:32]} Ke6 {[%emt 0:00:16]} 54. Kg3 {[%emt 0:01:54]} 1/2-1/2

[Event "FIN-ch Women 2018"]
[Site "Helsinki"]
[Date "2018.06.19"]
[Round "9"]
[White "Dannenberg, Alia"]
[Black "Turunen, Tiina"]
[Result "1/2-1/2"]
[ECO "B10"]
[WhiteElo "1934"]
[BlackElo "1665"]
[Annotator "NA"]
[PlyCount "57"]
[EventDate "2018.06.13"]
[EventType "tourn"]
[EventCountry "FIN"]
[SourceTitle "playchess.com"]
[Source "ChessBase"]
[SourceQuality "1"]
[TimeControl "40/5400+30:1800+30"]

1. e4 {[%emt 0:00:00]} c6 {[%emt 0:00:31]} 2. d3 {[%emt 0:00:00]} d5 {[%emt 0:00:32]} 3. Nd2 {[%emt 0:00:00]} dxe4 {[%emt 0:01:06]} 4. dxe4 {[%emt 0:00:00]} e5 {[%emt 0:00:47]} 5. Ngf3 {[%emt 0:00:00]} Bg4 {[%emt 0:01:49]} 6. h3 {[%emt 0:02:19] B10: Caro-Kann: 2 d3 and 2 c4} Bxf3 {[%emt 0:02:37]} 7. Qxf3 {[%emt 0:00:17]} Nf6 {[%emt 0:01:16]} 8. g3 {[%emt 0:05:14]} Bc5 {[%emt 0:01:14]} 9. Bg2 {[%emt 0:00:36]} O-O {[%emt 0:00:15]} 10. O-O {[%emt 0:00:06]} Nbd7 {[%emt 0:00:33]} 11. Nc4 {[%emt 0:03:22]} (11. a4 a5 12. Nc4 Qe7 13. Bd2 b6 14. Rfd1 Rfd8 15. h4 Nf8 16. Bc3 N6d7 17. Rd3 f6 18. Ne3 Bxe3 19. Qxe3 Nc5 20. Rxd8 Qxd8 {½-½ (100) Efimenko,Z (2643)-Lewtak,D (2341) Warsaw 2017}) 11... Qc7 {[%emt 0:01:05]} 12. Bg5 $146 {[%emt 0:03:15]} ({Predecessor:} 12. h4 Ne8 13. Bh3 Nb6 14. Ne3 Nd6 15. Ng4 Qe7 16. Ne3 Nbc4 17. Nxc4 Nxc4 {0-1 (40) Schlemermeyer,W (2313)-Meister,J (2500) Berlin 2003}) 12... h6 {[%emt 0:02:21]} 13. Be3 {[%emt 0:00:18]} b5 {[%emt 0:02:00]} 14. Nd2 {[%emt 0:08:04]} Rad8 {[%emt 0:05:11]} 15. Nb3 {[%emt 0:02:03]} Bb6 {[%emt 0:00:17]} 16. a4 {[%emt 0:01:57]} a6 {[%emt 0:03:44]} 17. Qe2 {[%emt 0:05:57]} Rfe8 {[%emt 0:00:56]} 18. Rfd1 {[%emt 0:00:36]} Re6 {[%emt 0:04:33]} 19. axb5 {[%emt 0:06:36]} axb5 {[%emt 0:00:56]} 20. Ra6 {[%emt 0:01:07]} Bxe3 {[%emt 0:02:05]} 21. Qxe3 {[%emt 0:01:24]} Rd6 {[%emt 0:03:31]} 22. Rda1 {[%emt 0:07:20]} Nb8 {[%emt 0:02:15]} 23. Ra7 {[%emt 0:01:35]} Qc8 {[%emt 0:12:20]} 24. Qe2 {[%emt 0:05:25]} R6d7 {[%emt 0:03:53]} 25. h4 {[%emt 0:05:43]} Rxa7 26. Rxa7 {[%emt 0:00:04]} Nbd7 {[%emt 0:04:58]} 27. Nc1 {[%emt 0:06:32]} Qb8 {[%emt 0:00:31]} 28. Ra3 $11 {[%emt 0:00:31]} Nb6 {[%emt 0:01:59]} 29. Rd3 {[%emt 0:04:30]} 1/2-1/2

[Event "FIN-ch Women 2018"]
[Site "Helsinki"]
[Date "2018.06.19"]
[Round "9"]
[White "Al Najar, Huda"]
[Black "Al-Hamoud, Lyal"]
[Result "1-0"]
[ECO "C44"]
[WhiteElo "1719"]
[BlackElo "1382"]
[Annotator "NA"]
[PlyCount "51"]
[EventDate "2018.06.13"]
[EventType "tourn"]
[EventCountry "FIN"]
[SourceTitle "playchess.com"]
[Source "ChessBase"]
[SourceQuality "1"]
[TimeControl "40/5400+30:1800+30"]

1. e4 {[%emt 0:00:00]} e5 {[%emt 0:00:04]} 2. Nf3 {[%emt 0:00:00]} Nc6 {[%emt 0:00:08]} 3. c3 {[%emt 0:00:00]} a6 {[%emt 0:00:28]} 4. Bc4 {[%emt 0:00:41]} Bc5 {[%emt 0:00:11]} 5. O-O {[%emt 0:00:53]} d6 {[%emt 0:00:24]} 6. d4 Ba7 {[%emt 0:00:40]} 7. dxe5 {[%emt 0:01:03]} dxe5 {[%emt 0:00:17]} 8. Qb3 {[%emt 0:01:37]} Qe7 {[%emt 0:02:18]} 9. Bd5 {[%emt 0:01:26]} Qf6 {[%emt 0:05:43]} 10. Bg5 {[%emt 0:02:57]} Qg6 {[%emt 0:00:39]} 11. Bxc6+ {[%emt 0:02:56]} Qxc6 {[%emt 0:00:20]} 12. Rd1 {[%emt 0:02:04]} f6 {[%emt 0:02:25]} 13. Bh4 {[%emt 0:06:31]} Qxe4 {[%emt 0:01:31]} 14. Nbd2 {[%emt 0:00:24]} Qc6 {[%emt 0:00:20]} 15. Nxe5 {[%emt 0:02:07]} fxe5 {[%emt 0:03:21]} 16. Nf3 {[%emt 0:00:10]} Nf6 {[%emt 0:01:59]} 17. Nxe5 {[%emt 0:00:09]} Qe6 {[%emt 0:00:54]} 18. Qa3 {[%emt 0:02:47]} Bd7 {[%emt 0:04:03]} 19. Nxd7 {[%emt 0:00:37]} Qf7 {[%emt 0:06:09]} 20. Nxf6+ {[%emt 0:00:20]} gxf6 {[%emt 0:01:03]} 21. Re1+ {[%emt 0:00:24]} Kd8 {[%emt 0:00:25]} 22. Rad1+ {[%emt 0:00:50]} Kc8 {[%emt 0:00:29]} 23. Re7 {[%emt 0:00:50]} Qg6 {[%emt 0:00:37]} 24. Qa4 {[%emt 0:01:41]} c6 {[%emt 0:01:12]} 25. Qb4 {[%emt 0:03:01]} c5 {[%emt 0:01:21]} 26. Qxb7# {[%emt 0:00:05]} 1-0

[Event "FIN-ch Women 2018"]
[Site "Helsinki"]
[Date "2018.06.19"]
[Round "9"]
[White "Pelander, Pauliina"]
[Black "Norlamo, Sarabella"]
[Result "0-1"]
[ECO "A00"]
[WhiteElo "1610"]
[BlackElo "1847"]
[Annotator "NA"]
[PlyCount "91"]
[EventDate "2018.06.13"]
[EventType "tourn"]
[EventCountry "FIN"]
[SourceTitle "playchess.com"]
[Source "ChessBase"]
[SourceQuality "1"]
[TimeControl "40/5400+30:1800+30"]

1. b4 {[%emt 0:03:05]} e5 {[%emt 0:00:08]} 2. Bb2 {[%emt 0:00:11]} Bxb4 {[%emt 0:00:07]} 3. Bxe5 {[%emt 0:00:17]} Nf6 {[%emt 0:00:06]} 4. e3 {[%emt 0:00:35]} Nc6 {[%emt 0:00:14]} 5. Bb2 {[%emt 0:00:33] LiveBook: 8 Games} d5 {[%emt 0:00:36]} 6. Be2 {[%emt 0:02:52]} Bf5 {[%emt 0:08:48]} 7. h4 {[%emt 0:01:04]} Be7 {[%emt 0:05:14]} 8. Nh3 {[%emt 0:06:59]} Qd7 {[%emt 0:05:43]} 9. f3 $19 {[%emt 0:06:48]} ({Günstiger ist} 9. Nf4 $15) 9... h6 {[%emt 0:05:00]} 10. g4 {[%emt 0:04:07]} Be6 {[%emt 0:02:04]} 11. Nf2 {[%emt 0:11:06]} d4 {[%emt 0:09:45]} 12. e4 {[%emt 0:01:21]} Bd6 {[%emt 0:00:32]} 13. c3 {[%emt 0:03:40]} Bg3 {[%emt 0:00:37]} 14. Qc2 {[%emt 0:07:56]} O-O-O {[%emt 0:02:34]} 15. d3 {[%emt 0:04:47]} dxc3 {[%emt 0:02:43]} 16. Nxc3 {[%emt 0:11:19]} Nb4 {[%emt 0:03:34]} 17. Qd2 {[%emt 0:06:38]} Nxd3+ {[%emt 0:05:04]} 18. Bxd3 {[%emt 0:02:07]} Qxd3 {[%emt 0:00:14]} 19. Qxd3 {[%emt 0:02:19]} Bxf2+ {[%emt 0:01:09]} 20. Kxf2 {[%emt 0:00:09]} Rxd3 {[%emt 0:00:02]} 21. Rab1 {[%emt 0:01:53]} Rhd8 {[%emt 0:06:42]} 22. Rhc1 {[%emt 0:02:09]} a6 {[%emt 0:05:36]} 23. Ba3 {[%emt 0:14:50]} Rd2+ {[%emt 0:01:59]} 24. Kg3 {[%emt 0:01:59]} Bxa2 {[%emt 0:00:38]} 25. Ra1 {[%emt 0:00:51]} Be6 {[%emt 0:05:05]} 26. e5 {[%emt 0:00:26]} Nd5 {[%emt 0:01:29]} 27. Ne4 {[%emt 0:00:18]} Rd3 {[%emt 0:06:03]} 28. Bc5 {[%emt 0:00:43]} f5 {[%emt 0:06:03]} 29. Nf2 {[%emt 0:01:31]} f4+ {[%emt 0:00:56]} 30. Kg2 {[%emt 0:00:21]} Rd2 {[%emt 0:01:26]} 31. Kg1 {[%emt 0:00:04]} Ne3 {[%emt 0:01:32]} 32. Bd6 {[%emt 0:00:24]} Bc4 {[%emt 0:04:43]} 33. Bb4 {[%emt 0:01:02]} Rc2 {[%emt 0:01:08]} 34. Re1 {[%emt 0:01:37]} Re2 {[%emt 0:03:50]} 35. Rec1 {[%emt 0:00:12]} Bd5 {[%emt 0:00:56]} 36. Bd6 {[%emt 0:00:24]} Nc2 {[%emt 0:01:33]} 37. Ra5 {[%emt 0:01:15]} Bc6 {[%emt 0:02:33]} 38. Bc5 {[%emt 0:00:33]} Re1+ {[%emt 0:02:05]} 39. Rxe1 {[%emt 0:00:02]} Nxe1 {[%emt 0:00:06]} 40. Nh3 {[%emt 0:00:00]} Nxf3+ {[%emt 0:00:15]} 41. Kf2 {[%emt 0:01:12]} Rd2+ {[%emt 0:00:50]} 42. Kf1 {[%emt 0:00:21]} Bb5+ {[%emt 0:01:28]} 43. Rxb5 {[%emt 0:00:09]} axb5 {[%emt 0:00:01]} 44. Nxf4 {[%emt 0:00:34]} Nxe5 {[%emt 0:00:14]} 45. Bf8 {[%emt 0:02:00]} Nxg4 {[%emt 0:00:10]} 46. Ke1 0-1

[Event "FIN-ch Women 2018"]
[Site "Helsinki"]
[Date "2018.06.19"]
[Round "9"]
[White "Ristoja, Aulikki"]
[Black "Al Argha, Fatima"]
[Result "0-1"]
[ECO "C26"]
[WhiteElo "1565"]
[BlackElo "1436"]
[Annotator "NA"]
[PlyCount "90"]
[EventDate "2018.06.13"]
[EventType "tourn"]
[EventCountry "FIN"]
[SourceTitle "playchess.com"]
[Source "ChessBase"]
[SourceQuality "1"]
[TimeControl "40/5400+30:1800+30"]

1. Nc3 {[%emt 0:00:00]} e5 {[%emt 0:00:26]} 2. e4 {[%emt 0:00:00]} Nf6 {[%emt 0:00:37]} 3. Bc4 {[%emt 0:00:27]} Bc5 {[%emt 0:00:14]} 4. d3 {[%emt 0:00:45]} h6 {[%emt 0:00:43]} 5. h3 {[%emt 0:02:21]} Nc6 {[%emt 0:01:04]} 6. a3 {[%emt 0:00:44]} d6 {[%emt 0:00:55]} 7. Na4 {[%emt 0:01:41]} Bb6 {[%emt 0:00:55]} 8. Nxb6 {[%emt 0:00:22]} axb6 {[%emt 0:00:31]} 9. Ne2 {[%emt 0:00:56]} O-O {[%emt 0:01:49]} 10. f4 {[%emt 0:01:37]} Be6 {[%emt 0:10:07]} 11. Bxe6 {[%emt 0:01:36]} fxe6 {[%emt 0:00:08]} 12. O-O {[%emt 0:01:05]} Qe8 {[%emt 0:09:17]} 13. Bd2 {[%emt 0:02:58]} Nh5 {[%emt 0:06:53]} 14. g4 {[%emt 0:05:06]} Nxf4 {[%emt 0:00:38]} 15. Nxf4 {[%emt 0:00:35]} exf4 {[%emt 0:00:07]} 16. Bxf4 {[%emt 0:02:56]} e5 {[%emt 0:01:54]} 17. Be3 {[%emt 0:01:13]} Qg6 {[%emt 0:00:24]} 18. Qe2 {[%emt 0:01:55]} Qe6 {[%emt 0:15:55]} 19. Rf5 {[%emt 0:01:18]} g6 {[%emt 0:03:58]} 20. Rxf8+ {[%emt 0:00:07]} Rxf8 {[%emt 0:00:53]} 21. Bxh6 {[%emt 0:00:56]} Rf7 {[%emt 0:00:48]} 22. Rf1 {[%emt 0:01:55]} Nd4 {[%emt 0:02:11]} 23. Qg2 {[%emt 0:01:32]} Qe7 {[%emt 0:04:37]} 24. c3 {[%emt 0:01:34]} Ne6 {[%emt 0:00:46]} 25. Bd2 {[%emt 0:00:40]} Rh7 {[%emt 0:00:58]} 26. g5 {[%emt 0:01:37]} Rh5 {[%emt 0:01:56]} 27. Rf6 {[%emt 0:01:03]} Kg7 {[%emt 0:00:50]} 28. Qg4 {[%emt 0:00:34]} Nxg5 {[%emt 0:02:50]} 29. Bxg5 {[%emt 0:00:03]} Rxg5 {[%emt 0:00:19]} 30. Qxg5 {[%emt 0:00:04]} Qxf6 {[%emt 0:00:04]} 31. Qxf6+ {[%emt 0:01:23]} Kxf6 {[%emt 0:00:05]} 32. Kg2 {[%emt 0:00:48]} Kg5 {[%emt 0:00:52]} 33. Kg3 {[%emt 0:00:12]} Kh5 {[%emt 0:00:18]} 34. d4 {[%emt 0:02:41]} g5 {[%emt 0:02:28]} 35. b4 {[%emt 0:00:34]} b5 {[%emt 0:05:21]} 36. Kf3 {[%emt 0:06:33]} Kh4 {[%emt 0:00:45]} 37. Kg2 {[%emt 0:00:03]} g4 {[%emt 0:00:18]} 38. dxe5 {[%emt 0:02:44]} gxh3+ {[%emt 0:01:05]} 39. Kh2 {[%emt 0:00:03]} dxe5 {[%emt 0:00:19]} 40. Kh1 {[%emt 0:00:00]} Kg3 {[%emt 0:00:31]} 41. Kg1 {[%emt 0:00:46]} h2+ {[%emt 0:00:18]} 42. Kh1 {[%emt 0:00:20]} Kf3 {[%emt 0:00:03]} 43. Kxh2 {[%emt 0:00:09]} Kxe4 {[%emt 0:00:06]} 44. Kg2 {[%emt 0:00:24]} Kd3 {[%emt 0:00:27]} 45. Kf2 {[%emt 0:00:51]} e4 {[%emt 0:00:29]} 0-1